bitfinex/quotes_BTCUSD_20250417
["timestamp","ask_amount","ask_price","bid_price","bid_amount"]
[1744932274338,0.11944791,84828.0,84827.0,0.24243337]
[1744932282648,0.11944791,84828.0,84827.0,0.0066613]
[1744932286346,0.21914791,84828.0,84827.0,0.0066613]
[1744932286491,0.21914791,84828.0,84799.0,0.0488]
[1744932286492,0.01179175,84805.0,84799.0,0.09627281]
[1744932286865,0.11944791,84804.0,84802.0,0.01179217]
[1744932287064,0.11944791,84804.0,84803.0,0.00552232]
[1744932287584,0.11944791,84804.0,84803.0,0.58136303]
[1744932287845,0.11944791,84804.0,84803.0,0.58140797]
[1744932288242,0.11944791,84804.0,84803.0,0.34556726]
[1744932291348,0.12044791,84804.0,84803.0,0.34556726]
[1744932297099,0.001,84804.0,84803.0,0.34556726]
[1744932297320,0.001,84804.0,84803.0,0.39396726]
[1744932301730,0.4128,84827.0,84824.0,0.24756895]
[1744932301963,0.11944791,84826.0,84824.0,0.01178911]
[1744932302192,0.11944791,84826.0,84825.0,0.00574243]
[1744932302425,0.11944791,84826.0,84825.0,0.24152197]
[1744932302653,0.11944791,84826.0,84825.0,0.24148312]
[1744932307349,0.001,84827.0,84825.0,0.24148312]
[1744932307563,0.12044791,84827.0,84825.0,0.24148312]
[1744932311966,0.12044791,84827.0,84826.0,0.34]
[1744932312212,0.12044791,84827.0,84826.0,0.3899]
[1744932312488,0.12044791,84827.0,84826.0,0.3955544]
[1744932322859,0.001,84827.0,84826.0,0.3955544]
[1744932327841,0.001,84827.0,84826.0,0.3456544]
[1744932331869,0.002,84827.0,84826.0,0.3456544]
[1744932351190,1e-08,84835.0,84832.0,0.011788]
[1744932351385,0.11944791,84834.0,84832.0,0.011788]
[1744932351752,0.11944791,84834.0,84833.0,0.00564077]
[1744932352089,0.11944791,84834.0,84832.0,0.011788]
[1744932352315,0.11944791,84834.0,84833.0,0.00563853]
[1744932352511,0.11949559,84834.0,84832.0,0.011788]
[1744932352712,0.11949559,84834.0,84833.0,0.00563853]
[1744932352913,0.11949559,84834.0,84832.0,0.011788]
[1744932353115,0.11949559,84834.0,84833.0,0.24139584]
[1744932353543,0.11949559,84834.0,84833.0,0.25379028]
[1744932356620,0.11949559,84834.0,84833.0,0.01803297]
[1744932361180,0.11949559,84834.0,84833.0,0.35803297]
[1744932361613,0.12049559,84834.0,84833.0,0.35803297]
[1744932362015,0.12049559,84834.0,84832.0,0.2475458]
[1744932362181,0.12049559,84834.0,84833.0,0.00466584]
[1744932362603,0.12049559,84834.0,84832.0,0.26010222]
[1744932362945,0.00104768,84834.0,84833.0,0.00465778]
[1744932363346,0.00104768,84834.0,84832.0,0.26010222]
[1744932363566,0.00104768,84834.0,84833.0,0.00465778]
[1744932364127,0.00104768,84834.0,84833.0,0.0497]
[1744932364304,0.00104768,84834.0,84833.0,0.39433573]
[1744932366367,0.00104768,84834.0,84833.0,0.44003573]
[1744932369003,1e-08,84834.0,84833.0,0.44003573]
[1744932369202,0.00877699,84843.0,84842.0,0.6710323]
[1744932369382,0.00882192,84843.0,84842.0,0.6710323]
[1744932369587,0.00882192,84843.0,84842.0,0.67545623]
[1744932374393,0.00882192,84843.0,84842.0,0.68441875]
[1744932376800,0.002,84859.0,84855.0,0.23569618]
[1744932376975,0.00129201,84856.0,84855.0,0.57569618]
[1744932377181,0.00129201,84856.0,84855.0,0.58009798]
[1744932382413,0.00129201,84856.0,84855.0,0.57569618]
[1744932383409,0.00129201,84856.0,84855.0,0.62299618]
[1744932390754,1e-08,84856.0,84855.0,0.74244409]
[1744932390952,0.0004214,84868.0,84855.0,0.74244409]
[1744932390953,0.17652,84888.0,84876.0,0.57563787]
[1744932391306,0.0461,84892.0,84876.0,0.57563787]
[1744932391512,0.00046906,84877.0,84876.0,0.57563787]
[1744932392155,0.00046906,84877.0,84876.0,0.59124692]
[1744932394745,0.12091697,84877.0,84876.0,0.59124692]
[1744932394945,0.12091697,84877.0,84876.0,0.57563787]
[1744932398896,0.12091697,84877.0,84876.0,0.23563787]
[1744932402483,0.00146906,84877.0,84876.0,0.23563787]
[1744932403708,0.12091697,84877.0,84876.0,0.23563787]
[1744932405594,0.00146906,84877.0,84876.0,0.57563787]
[1744932407542,0.00146906,84877.0,84875.0,0.35580454]
[1744932408066,0.00146906,84877.0,84876.0,0.23563787]
[1744932411262,0.00046906,84877.0,84876.0,0.23563787]
[1744932415738,0.00046906,84877.0,84876.0,0.57663787]
[1744932421668,0.00046906,84877.0,84876.0,0.57563787]
[1744932422715,0.00146906,84877.0,84875.0,0.01580454]
[1744932422899,0.00146906,84877.0,84876.0,0.23563787]
[1744932423125,0.12091697,84877.0,84876.0,0.23563787]
[1744932437383,0.00146906,84877.0,84876.0,0.23563787]
[1744932441882,0.12091697,84877.0,84876.0,0.23563787]
[1744932443202,0.12091697,84877.0,84875.0,0.35592825]
[1744932443957,0.12091697,84877.0,84876.0,0.23563787]
[1744932448171,0.12091697,84877.0,84875.0,0.35592825]
[1744932448667,0.12091697,84877.0,84876.0,0.23563787]
[1744932461339,0.12091697,84877.0,84876.0,0.28283787]
[1744932462232,0.12091596,84877.0,84876.0,0.28283787]
[1744932463404,0.00146805,84877.0,84876.0,0.67203787]
[1744932463599,0.00146805,84877.0,84876.0,0.67303787]
[1744932469835,0.00146805,84877.0,84876.0,0.33303787]
[1744932471451,0.00046805,84877.0,84876.0,0.33303787]
[1744932473652,0.00046805,84877.0,84876.0,0.67303787]
[1744932475669,0.00046805,84877.0,84876.0,0.79248578]
[1744932479231,0.002,84889.0,84888.0,0.62240456]
[1744932481457,0.002,84889.0,84888.0,0.63144268]
[1744932488962,0.002,84889.0,84888.0,0.58464268]
[1744932489166,0.002,84889.0,84888.0,0.57560456]
[1744932489388,0.003,84889.0,84888.0,0.57560456]
[1744932508881,0.12244791,84889.0,84888.0,0.57560456]
[1744932509784,0.12244791,84889.0,84888.0,0.23560456]
[1744932531195,0.12144791,84889.0,84888.0,0.23560456]
[1744932556484,0.002,84889.0,84888.0,0.23560456]
[1744932559524,0.002,84889.0,84887.0,0.34]
[1744932560082,0.002,84889.0,84888.0,0.23560456]
[1744932564243,0.002,84889.0,84888.0,0.23560456]
[1744932571899,0.12144791,84889.0,84888.0,0.23560456]
[1744932572666,0.12144791,84889.0,84887.0,0.34]
[1744932572875,0.11944791,84888.0,84887.0,0.34]
[1744932587345,0.11944791,84888.0,84882.0,0.23562041]
[1744932587346,0.01178133,84880.0,84874.0,0.01178217]
[1744932587547,0.11944791,84879.0,84876.0,0.2474196]
[1744932587780,0.11944791,84879.0,84876.0,0.01178189]
[1744932588394,0.13122938,84879.0,84876.0,0.01178189]
[1744932590920,0.11944791,84879.0,84877.0,0.23563509]
[1744932591369,0.12044791,84879.0,84877.0,0.23563509]
[1744932601728,0.11944791,84879.0,84877.0,0.23563509]
[1744932603112,0.002,84889.0,84877.0,0.23563509]
[1744932603348,0.002,84889.0,84888.0,0.23560456]
[1744932603568,0.12144791,84889.0,84888.0,0.23560456]
[1744932611063,0.12144791,84889.0,84886.0,0.0117805]
[1744932611275,0.11944791,84888.0,84886.0,0.0117805]
[1744932612048,0.11944791,84888.0,84887.0,0.23560733]
[1744932612204,0.11944791,84888.0,84886.0,0.0117805]
[1744932613680,0.11944791,84888.0,84887.0,0.23560733]
[1744932614112,0.11944791,84888.0,84886.0,0.0117805]
[1744932617105,0.11944791,84888.0,84887.0,0.23560733]
[1744932617307,0.11944791,84888.0,84886.0,0.0117805]
[1744932619743,0.11944791,84888.0,84884.0,0.01178078]
[1744932620358,0.13122813,84888.0,84885.0,0.01178064]
[1744932621532,0.13122813,84888.0,84880.0,0.24740695]
[1744932621533,0.01178078,84884.0,84880.0,0.01178133]
[1744932621744,0.35506634,84883.0,84880.0,0.01178133]
[1744932622402,0.36684726,84883.0,84880.0,0.01178133]
[1744932624622,0.13122883,84883.0,84880.0,0.01178133]
[1744932624822,0.11944791,84883.0,84881.0,0.23562399]
[1744932634813,0.11944791,84883.0,84879.0,0.23562928]
[1744932635082,0.11944791,84883.0,84879.0,0.21603959]
[1744932635696,0.11944791,84883.0,84880.0,0.01178133]
[1744932636102,0.11944791,84883.0,84881.0,0.23562399]
[1744932637185,0.11944791,84883.0,84880.0,0.01178133]
[1744932644281,0.23562121,84882.0,84877.0,0.24741684]
[1744932644484,0.11944791,84881.0,84878.0,0.24741133]
[1744932646724,0.11944791,84881.0,84878.0,0.01178161]
[1744932646953,0.11944791,84881.0,84875.0,0.38387083]
[1744932646954,0.01178147,84879.0,84875.0,0.38387083]
[1744932647173,0.11944791,84878.0,84875.0,0.3720888]
[1744932647391,0.23563509,84877.0,84875.0,0.0320888]
[1744932647574,0.11944791,84876.0,84875.0,0.0320888]
[1744932653074,0.12044791,84876.0,84875.0,0.01840653]
[1744932654141,0.12044791,84876.0,84871.0,0.01178258]
[1744932654142,0.01178231,84873.0,84870.0,0.01358139]
[1744932654357,0.11944791,84872.0,84870.0,0.01358139]
[1744932654590,0.24745082,84866.0,84863.0,0.01840874]
[1744932654807,0.36689873,84866.0,84863.0,0.0184564]
[1744932655040,0.23567119,84864.0,84863.0,0.0184564]
[1744932655256,0.3551191,84864.0,84863.0,0.0184564]
[1744932655667,0.3551191,84864.0,84863.0,0.03212852]
[1744932657434,0.3551191,84864.0,84863.0,4.766e-05]
[1744932658191,0.4022191,84864.0,84863.0,4.766e-05]
[1744932659253,0.4503191,84864.0,84863.0,4.766e-05]
[1744932661800,0.4513191,84864.0,84863.0,4.766e-05]
[1744932663834,0.3561191,84864.0,84863.0,4.766e-05]
[1744932668988,0.12044791,84864.0,84863.0,0.23572162]
[1744932669191,0.12044791,84864.0,84863.0,4.766e-05]
[1744932683414,0.001,84864.0,84863.0,0.43444766]
[1744932697126,1.23304,84888.0,84887.0,0.23560733]
[1744932697353,0.25084791,84888.0,84887.0,0.23560733]
[1744932697565,0.002,84889.0,84887.0,0.23560733]
[1744932698499,0.002,84889.0,84886.0,0.23561011]
[1744932699273,0.002,84889.0,84887.0,0.23560733]
[1744932700708,0.002,84889.0,84888.0,0.34]
[1744932707551,0.002,84889.0,84888.0,0.4314]
[1744932711181,0.002,84889.0,84888.0,0.4334]
[1744932715337,0.0004214,84911.0,84888.0,0.4334]
[1744932715544,0.11986931,84911.0,84908.0,0.01177745]
[1744932715994,0.0004214,84911.0,84909.0,0.23554629]
[1744932716207,0.0004214,84911.0,84908.0,0.24732423]
[1744932716425,0.0004214,84911.0,84909.0,0.23554629]
[1744932716815,0.00055616,84911.0,84909.0,0.23554629]
[1744932718537,0.00055616,84911.0,84909.0,0.24840205]
[1744932719783,0.00055616,84911.0,84904.0,0.28095972]
[1744932719784,0.01177745,84908.0,84904.0,0.011778]
[1744932719955,0.011778,84904.0,84900.0,0.35177856]
[1744932720155,0.11944791,84903.0,84899.0,0.0117787]
[1744932720567,0.11944791,84903.0,84901.0,0.235567]
[1744932720769,0.11944791,84903.0,84900.0,0.01177856]
[1744932722966,0.11944791,84903.0,84900.0,0.24734705]
[1744932724813,0.11944791,84903.0,84899.0,0.26023907]
[1744932724985,0.11944791,84903.0,84900.0,0.23556849]
[1744932725616,0.11944791,84903.0,84900.0,0.24734705]
[1744932726051,0.11944791,84903.0,84902.0,0.23556571]
[1744932729552,0.0004215,84913.0,84910.0,0.23554351]
[1744932729776,0.25132407,84911.0,84910.0,0.23554351]
[1744932732573,0.12000407,84911.0,84910.0,0.23554351]
[1744932736940,0.12000407,84911.0,84899.0,0.26023705]
[1744932736941,0.23554629,84909.0,84899.0,0.26023705]
[1744932737178,0.01177773,84906.0,84903.0,0.24734098]
[1744932737390,0.11944791,84905.0,84903.0,0.01177814]
[1744932737826,0.11944791,84905.0,84903.0,0.24734014]
[1744932743358,0.00055616,84911.0,84907.0,0.23555183]
[1744932743572,0.11944791,84910.0,84907.0,0.24732942]
[1744932744337,0.00055616,84911.0,84909.0,0.34]
[1744932744554,0.12000407,84911.0,84910.0,0.23554351]
[1744932749864,0.00055616,84911.0,84910.0,0.23554351]
[1744932751382,0.00055616,84911.0,84910.0,0.23789884]
[1744932751585,0.00055616,84911.0,84910.0,0.28679884]
[1744932751791,0.00055616,84911.0,84910.0,0.28444351]
[1744932755886,0.00055616,84911.0,84910.0,0.29311491]
[1744932756107,0.00055616,84911.0,84910.0,0.24421491]
[1744932758843,0.00055616,84911.0,84910.0,0.23554351]
[1744932759479,0.00055616,84911.0,84910.0,0.23654351]
[1744932765379,0.00055616,84911.0,84910.0,0.001]
[1744932765596,0.12000407,84911.0,84910.0,0.001]
[1744932775538,0.00055616,84911.0,84910.0,0.001]
[1744932777953,0.12000407,84911.0,84910.0,0.001]
[1744932779964,0.35554481,84911.0,84910.0,0.001]
[1744932780476,0.12000407,84911.0,84910.0,0.001]
[1744932781791,0.12000407,84911.0,84908.0,0.35177745]
[1744932781917,0.11944791,84910.0,84908.0,0.35177745]
[1744932782627,0.11944791,84910.0,84909.0,0.57554629]
[1744932783489,0.11944791,84910.0,84909.0,0.34]
[1744932783909,0.11944791,84910.0,84909.0,0.23554629]
[1744932791751,0.11944791,84910.0,84909.0,0.23654629]
[1744932798306,0.11944791,84910.0,84909.0,0.57654629]
[1744932800028,0.11944791,84910.0,84909.0,0.341]
[1744932810588,0.11944791,84910.0,84909.0,0.001]
[1744932810589,0.40349142,84910.0,84909.0,0.001]
[1744932811077,0.42554234,84910.0,84909.0,0.001]
[1744932811614,0.40349142,84910.0,84909.0,0.001]
[1744932812711,0.42553253,84910.0,84909.0,0.001]
[1744932814541,0.44007338,84910.0,84909.0,0.001]
[1744932824573,0.57131338,84910.0,84909.0,0.001]
[1744932829071,0.57131338,84910.0,84897.0,0.01246995]
[1744932829280,0.24735564,84898.0,84892.0,0.35177967]
[1744932829495,0.13122688,84897.0,84894.0,0.01177939]
[1744932830124,0.13122688,84897.0,84893.0,0.01177953]
[1744932832305,0.13122688,84897.0,84893.0,0.02420676]
[1744932834230,0.13122688,84897.0,84893.0,0.01242723]
[1744932834660,0.13122688,84897.0,84891.0,0.01177981]
[1744932834661,0.01177911,84896.0,84891.0,0.01177981]
[1744932834865,0.11944791,84895.0,84893.0,0.01273921]
[1744932835071,0.11944791,84895.0,84891.0,0.01177981]
[1744932835285,0.35503334,84895.0,84891.0,0.01177981]
[1744932835459,0.36681259,84895.0,84891.0,0.01177981]
[1744932839453,0.36681259,84895.0,84892.0,0.34]
[1744932842136,0.11944791,84895.0,84894.0,0.34]
[1744932842360,0.11944791,84895.0,84892.0,0.35177967]
[1744932842781,0.13124,84910.0,84892.0,0.35177967]
[1744932842782,0.011778,84904.0,84899.0,0.24735162]
[1744932842987,0.11944791,84903.0,84899.0,0.24735162]
[1744932843188,0.1414956,84903.0,84899.0,0.24735162]
[1744932843546,0.02204769,84902.0,84899.0,0.24735162]
[1744932843750,0.11944791,84901.0,84899.0,0.24735162]
[1744932845385,0.11944791,84901.0,84899.0,0.0117787]
[1744932847939,0.11944791,84901.0,84897.0,0.01177897]
[1744932848567,0.13122633,84901.0,84897.0,0.01177897]
[1744932849100,0.0117787,84899.0,84894.0,0.34]
[1744932849316,0.13122675,84898.0,84894.0,0.35177939]
[1744932852340,0.36680358,84898.0,84894.0,0.35177939]
[1744932852953,0.01177897,84897.0,84894.0,0.01177939]
[1744932853186,0.11944791,84896.0,84894.0,0.01177939]
[1744932855469,0.11944791,84896.0,84890.0,0.23364928]
[1744932856631,0.11944791,84896.0,84894.0,0.01177939]
[1744932859742,0.13122702,84896.0,84893.0,0.35177953]
[1744932862192,0.13122702,84896.0,84893.0,0.34]
[1744932865968,0.13122702,84896.0,84892.0,0.248372]
[1744932865969,0.23558513,84895.0,84892.0,0.001]
[1744932869466,0.24736438,84895.0,84892.0,0.001]
[1744932885690,0.13122702,84896.0,84892.0,0.01277967]
[1744932886048,0.11944791,84896.0,84894.0,0.34]
[1744932886532,0.11944791,84896.0,84894.0,0.57558556]
[1744932887278,0.24733891,84904.0,84899.0,0.0117787]
[1744932887514,0.23553359,84914.0,84902.0,0.24734399]
[1744932887515,0.11944791,84903.0,84902.0,0.24734399]
[1744932889715,0.24732374,84909.0,84902.0,0.24734399]
[1744932889716,0.00055616,84911.0,84908.0,0.24732426]
[1744932889929,0.11944791,84910.0,84908.0,0.24732426]
[1744932892075,0.11944791,84910.0,84908.0,0.01177745]
[1744932892660,0.00055616,84911.0,84909.0,0.23554629]
[1744932892814,0.12000407,84911.0,84909.0,0.23554629]
[1744932897388,0.00055616,84911.0,84909.0,0.23554629]
[1744932897779,0.00055616,84911.0,84908.0,0.05857745]
[1744932897976,0.00055616,84911.0,84908.0,0.06093269]
[1744932898207,0.00055616,84911.0,84908.0,0.40093269]
[1744932898410,0.00055616,84911.0,84908.0,0.39857745]
[1744932898614,0.00055616,84911.0,84908.0,0.39957745]
[1744932898822,0.00055616,84911.0,84908.0,0.44877745]
[1744932898999,0.00055616,84911.0,84909.0,0.23554629]
[1744932909063,0.00055616,84911.0,84909.0,0.23790153]
[1744932909302,0.00055616,84911.0,84909.0,0.2379015]
[1744932909649,0.00055616,84911.0,84909.0,0.23554629]
[1744932919011,0.00055616,84911.0,84908.0,0.35177745]
[1744932919012,0.24732689,84908.0,84905.0,0.34]
[1744932919235,0.01177884,84898.0,84892.0,0.24737266]
[1744932919444,0.13122688,84897.0,84892.0,0.24737106]
[1744932919651,0.13122688,84897.0,84894.0,0.01177939]
[1744932920061,0.01177911,84896.0,84893.0,0.35840187]
[1744932920273,0.11944791,84896.0,84893.0,0.0301814]
[1744932920631,0.11944791,84896.0,84893.0,0.3701814]
[1744932922933,0.11944791,84896.0,84895.0,0.23558513]
[1744932931633,0.11944791,84896.0,84895.0,0.24608718]
[1744932938303,0.24733507,84906.0,84901.0,0.01177842]
[1744932938506,0.11944791,84905.0,84901.0,0.01177842]
[1744932938715,0.13122577,84905.0,84902.0,0.01054217]
[1744932940226,0.11944791,84905.0,84904.0,0.23556016]
[1744932940905,0.11944791,84905.0,84904.0,0.24610233]
[1744932942492,0.11944791,84905.0,84904.0,0.01054217]
[1744932942827,0.11944791,84905.0,84902.0,0.24734156]
[1744932943033,0.11944791,84905.0,84904.0,0.01054217]
[1744932943288,0.11944791,84905.0,84903.0,0.0105404]
[1744932943494,0.11944791,84905.0,84904.0,0.01054217]
[1744932943911,0.13122577,84905.0,84901.0,0.01177842]
[1744932944138,0.13122577,84905.0,84904.0,0.01054217]
[1744932944335,0.0117787,84899.0,84893.0,0.01840187]
[1744932944545,0.11944791,84898.0,84894.0,0.34]
[1744932944746,0.11944791,84898.0,84896.0,0.01177911]
[1744932944943,0.11944791,84898.0,84895.0,0.01177925]
[1744932947635,0.11944791,84898.0,84895.0,0.24736396]
[1744932957975,0.11944791,84898.0,84895.0,0.23558471]
[1744932958604,0.11944791,84898.0,84895.0,0.24736396]
[1744932959180,0.11944791,84898.0,84896.0,0.01056082]
[1744932965053,0.11944791,84898.0,84896.0,0.01056082]
[1744932967439,0.23609746,84911.0,84906.0,0.23555428]
[1744932967655,0.11944791,84907.0,84905.0,0.01177786]
[1744932968391,0.11944791,84907.0,84903.0,0.24733845]
[1744932968602,0.01177773,84906.0,84903.0,0.01177814]
[1744932968792,0.11944791,84905.0,84903.0,0.01177814]
[1744932970349,0.13122577,84905.0,84902.0,0.01177828]
[1744932971818,0.11944791,84905.0,84903.0,0.23556293]
[1744932972024,0.11944791,84905.0,84902.0,0.01177828]
[1744932972220,0.13122577,84905.0,84902.0,0.01177828]
[1744932973188,0.23556294,84903.0,84899.0,0.0117787]
[1744932973390,0.01177842,84901.0,84896.0,0.01177911]
[1744932973662,0.13122633,84901.0,84897.0,0.24735803]
[1744932974270,0.13122633,84901.0,84898.0,0.01056043]
[1744932975064,0.01177731,84909.0,84902.0,0.01177828]
[1744932975275,0.11944791,84905.0,84902.0,0.01177828]
[1744932975466,0.11944791,84905.0,84903.0,0.01056926]
[1744932975641,0.35500566,84905.0,84903.0,0.01056926]
[1744932975850,0.36678352,84905.0,84901.0,0.01177842]
[1744932976058,0.36678352,84905.0,84904.0,0.0105675]
[1744932976224,0.011778,84904.0,84901.0,0.01177842]
[1744932976453,0.011778,84904.0,84803.0,0.17204544]
[1744932976454,0.23557126,84900.0,84894.0,0.01177939]
[1744932977007,0.01177856,84900.0,84895.0,0.01177925]
[1744932977219,0.01177856,84900.0,84896.0,0.01177911]
[1744932977442,0.01177884,84898.0,84895.0,0.01177925]
[1744932977644,0.01177842,84901.0,84897.0,0.01177897]
[1744932977896,0.13122633,84901.0,84897.0,0.01177897]
[1744932978480,0.13122633,84901.0,84898.0,0.01177884]
[1744932980663,0.11944791,84901.0,84898.0,0.29285341]
[1744932985252,0.11944791,84901.0,84898.0,0.05727884]
[1744932985431,0.11944791,84901.0,84898.0,0.01177884]
[1744932989153,0.01177884,84898.0,84895.0,0.01177925]
[1744932989593,0.01177884,84898.0,84893.0,0.01840187]
[1744932989594,0.01177911,84896.0,84893.0,0.01840187]
[1744932989793,0.23558513,84895.0,84893.0,0.01840187]
[1744932990027,0.13122702,84896.0,84893.0,0.01840187]
[1744932997365,0.36681177,84896.0,84893.0,0.01840187]
[1744932997574,0.11944791,84895.0,84893.0,0.01840187]
[1744932997780,0.35503558,84895.0,84893.0,0.01840187]
[1744932999670,0.11944791,84895.0,84893.0,0.01840187]
[1744933000107,0.11944791,84895.0,84894.0,0.01057198]
[1744933019518,0.11944791,84895.0,84894.0,0.00925159]
[1744933019864,0.11944791,84895.0,84892.0,0.06903142]
[1744933020061,0.11944791,84895.0,84894.0,0.00925159]
[1744933020268,0.11944791,84895.0,84893.0,0.00924982]
[1744933020484,0.11944791,84895.0,84894.0,0.00925386]
[1744933020841,0.11944791,84895.0,84892.0,0.06903142]
[1744933021039,0.11944791,84895.0,84894.0,0.00925386]
[1744933021241,0.11944791,84895.0,84893.0,0.0092521]
[1744933021482,0.11944791,84895.0,84892.0,0.06903142]
[1744933021634,0.11944791,84895.0,84894.0,0.0092521]
[1744933021840,0.11944791,84895.0,84892.0,0.06903142]
[1744933022050,0.11944791,84895.0,84894.0,0.00925386]
[1744933022248,0.11944791,84895.0,84893.0,0.0092521]
[1744933022459,0.11944791,84895.0,84894.0,0.00925386]
[1744933022999,0.11944791,84895.0,84892.0,0.06903142]
[1744933023169,0.11944791,84895.0,84894.0,0.00925386]
[1744933023383,0.11944791,84895.0,84893.0,0.0092521]
[1744933023584,0.11944791,84895.0,84894.0,0.00925386]
[1744933023927,0.11944791,84895.0,84893.0,0.23558841]
[1744933024103,0.11944791,84895.0,84894.0,0.00925386]
[1744933028042,0.13116,84905.0,84904.0,0.23556016]
[1744933028272,0.01177814,84903.0,84899.0,0.24735229]
[1744933028498,0.11944791,84902.0,84899.0,0.24735229]
[1744933028890,0.11944791,84902.0,84896.0,0.01177911]
[1744933028891,0.01177842,84901.0,84896.0,0.01177911]
[1744933029045,0.11944791,84900.0,84897.0,0.24735855]
[1744933030154,0.11944791,84900.0,84897.0,0.01177897]
[1744933031173,0.11944791,84900.0,84897.0,0.24735854]
[1744933032895,0.11944791,84900.0,84897.0,0.01177897]
[1744933033239,0.0117787,84899.0,84895.0,0.23558513]
[1744933033437,0.11944791,84898.0,84895.0,0.23558513]
[1744933033660,0.01177925,84895.0,84891.0,0.01251031]
[1744933033889,0.01177967,84892.0,84889.0,0.35178008]
[1744933034075,0.11944791,84891.0,84889.0,0.35459317]
[1744933034369,0.11944791,84891.0,84890.0,0.00924132]
[1744933036386,0.23559901,84890.0,84889.0,0.01459317]
[1744933036607,0.01178064,84885.0,84881.0,0.35178119]
[1744933036806,0.13122855,84885.0,84882.0,0.00922895]
[1744933037053,0.13122855,84885.0,84882.0,0.02338924]
[1744933039221,0.35506357,84884.0,84882.0,0.02338924]
[1744933040832,0.0481,84883.0,84882.0,0.00922895]
[1744933041041,0.0481,84883.0,84875.0,0.000843]
[1744933041042,0.01178161,84878.0,84875.0,0.000843]
[1744933041240,0.355083,84877.0,84875.0,0.000843]
[1744933041653,0.355083,84877.0,84876.0,0.00937961]
[1744933042068,0.355083,84877.0,84875.0,0.000843]
[1744933042476,0.355083,84877.0,84876.0,0.00940076]
[1744933042907,0.355083,84877.0,84875.0,0.000843]
[1744933043351,0.355083,84877.0,84876.0,0.00940076]
[1744933043656,0.355083,84877.0,84875.0,0.000843]
[1744933044032,0.355083,84877.0,84876.0,0.00940076]
[1744933044233,0.355083,84877.0,84875.0,0.000843]
[1744933044594,0.01178217,84874.0,84868.0,0.02873446]
[1744933044790,0.11944791,84873.0,84870.0,0.01178272]
[1744933044993,0.11944791,84873.0,84871.0,0.00940718]
[1744933046776,0.11944791,84873.0,84871.0,0.02379927]
[1744933047219,0.11944791,84873.0,84871.0,0.25945022]
[1744933048500,0.11944791,84873.0,84872.0,0.0482]
[1744933048707,0.11944791,84873.0,84872.0,0.05760542]
[1744933051044,0.11944791,84873.0,84871.0,0.05804154]
[1744933051340,0.11944791,84873.0,84872.0,0.00826493]
[1744933054760,0.11944791,84873.0,84869.0,0.01449789]
[1744933054761,0.24743141,84872.0,84869.0,0.01449789]
[1744933054964,0.23565453,84870.0,84869.0,0.01449789]
[1744933055114,0.0452,84869.0,84868.0,4.766e-05]
[1744933055315,0.16464791,84869.0,84868.0,4.766e-05]
[1744933070826,0.16564791,84869.0,84868.0,4.766e-05]
[1744933071023,0.18767183,84869.0,84868.0,4.766e-05]
[1744933072003,0.16564791,84869.0,84868.0,4.766e-05]
[1744933073410,0.1876702,84869.0,84868.0,4.766e-05]
[1744933074721,0.01178522,84852.0,84847.0,0.34]
[1744933074921,0.01178522,84852.0,84848.0,0.02010922]
[1744933075326,0.24749265,84851.0,84848.0,0.00832344]
[1744933078120,0.24749265,84851.0,84845.0,0.36999794]
[1744933078341,0.24749265,84851.0,84846.0,0.00837172]
[1744933079183,0.24750084,84849.0,84846.0,0.00837172]
[1744933080121,0.23571841,84847.0,84846.0,0.00837172]
[1744933080324,0.35516632,84847.0,84846.0,0.00837172]
[1744933080604,0.35516632,84847.0,84846.0,0.00937172]
[1744933081732,0.35516632,84847.0,84846.0,0.00837172]
[1744933082318,0.35516632,84847.0,84841.0,0.23573249]
[1744933082319,0.36695224,84847.0,84841.0,0.23573249]
[1744933082525,0.11944791,84846.0,84842.0,0.00735702]
[1744933082893,0.11944791,84846.0,84842.0,0.00835702]
[1744933083091,0.11944791,84846.0,84844.0,0.01178633]
[1744933083295,0.01178508,84853.0,84849.0,0.01178564]
[1744933083540,0.11944791,84852.0,84850.0,0.0073749]
[1744933085560,0.01178536,84851.0,84848.0,0.01178578]
[1744933085754,0.11944791,84850.0,84849.0,0.00737137]
[1744933088174,0.11944791,84850.0,84849.0,0.00737137]
[1744933089287,0.13123341,84850.0,84846.0,0.01178605]
[1744933089505,0.13123341,84850.0,84849.0,0.00736139]
[1744933090175,0.13123341,84850.0,84847.0,0.01178592]
[1744933090397,0.13123341,84850.0,84848.0,0.00735962]
[1744933091405,0.01178564,84849.0,84846.0,0.01178605]
[1744933091890,0.01178578,84848.0,84845.0,0.01754645]
[1744933092420,0.01178578,84848.0,84844.0,0.35178633]
[1744933094267,0.01178578,84848.0,84845.0,0.0073748]
[1744933094605,0.01178578,84848.0,84844.0,0.35178633]
[1744933094803,0.01178578,84848.0,84846.0,0.0073748]
[1744933095050,0.01178578,84848.0,84844.0,0.36951981]
[1744933095374,0.01178578,84848.0,84845.0,0.01178619]
[1744933095548,0.01178578,84848.0,84846.0,0.0073748]
[1744933096015,0.23571841,84847.0,84846.0,0.0073748]
[1744933096215,0.35516632,84847.0,84846.0,0.0073748]
[1744933096389,0.23572396,84845.0,84844.0,0.01773348]
[1744933096801,0.23572952,84843.0,84842.0,0.341]
[1744933096967,0.23572952,84843.0,84842.0,0.001]
[1744933097953,0.23572952,84843.0,84842.0,0.00144941]
[1744933098161,0.23572952,84843.0,84842.0,0.01917455]
[1744933098597,0.35517743,84843.0,84842.0,0.00144941]
[1744933099004,0.37822278,84843.0,84842.0,0.00144941]
[1744933102236,0.35617743,84843.0,84842.0,0.00144941]
[1744933105699,0.40557743,84843.0,84842.0,0.00144941]
[1744933106053,0.45127743,84843.0,84842.0,0.00144941]
[1744933106679,0.47330096,84843.0,84842.0,0.00144941]
[1744933113372,0.45127743,84843.0,84842.0,0.00144941]
[1744933113573,0.40557743,84843.0,84842.0,0.00144941]
[1744933113816,0.35617743,84843.0,84842.0,0.00144941]
[1744933114578,0.35617743,84843.0,84842.0,0.00897045]
[1744933114781,0.35617743,84843.0,84842.0,0.00144941]
[1744933117995,0.12044791,84843.0,84842.0,0.00144941]
[1744933118234,0.12044791,84843.0,84842.0,0.00899848]
[1744933118415,0.12044791,84843.0,84842.0,0.00144941]
[1744933118840,0.12044791,84843.0,84842.0,0.00899848]
[1744933119034,0.12044791,84843.0,84842.0,0.00144941]
[1744933119240,0.12044791,84843.0,84842.0,0.00899848]
[1744933119440,0.12044791,84843.0,84842.0,0.00144941]
[1744933119599,0.12044791,84843.0,84842.0,0.00899848]
[1744933120377,0.001,84843.0,84842.0,0.00999848]
[1744933120582,0.001,84843.0,84842.0,0.35235556]
[1744933120783,0.001,84843.0,84842.0,0.34999848]
[1744933122552,0.051,84843.0,84842.0,0.34999848]
[1744933128490,0.051,84843.0,84842.0,0.00999848]
[1744933129497,0.28672952,84843.0,84842.0,0.00999848]
[1744933129698,0.051,84843.0,84842.0,0.00999848]
[1744933130122,0.28672952,84843.0,84842.0,0.00999848]
[1744933131331,0.28572952,84843.0,84842.0,0.00799848]